{"text_format":"1","workbook":"xlsx","n_sheets":6,"sheets":["基本情報","前提条件","新RA記録表","作業時間シート(元)","元データ","立会いチェック版"],"not_rendered":{"charts":0,"images":4,"macros":1,"external_links":0,"defined_names":3,"comments":0,"pivot_tables":0},"unopened":[],"bounds":{"document_bytes":16777216,"sheet_cells":100000,"rows_first":2000,"rows_last":500,"rows_between":2000,"halvings":0,"cell_chars":16384,"cell_head_chars":4096},"cells_cut":0,"cells_raw":0,"read":"whole","date_system":"1900"}

{"sheet":"基本情報","index":0,"n_rows":19,"n_cols":24,"rows_kept":19,"cut":false,"hidden":false,"merged":[[0,8,0,22],[2,0,2,4],[3,0,3,4],[4,0,5,4],[6,0,6,4],[2,5,2,22],[3,5,3,22],[4,5,4,7],[5,5,5,7],[4,15,4,22],[5,15,5,22],[4,8,4,11],[5,8,5,11],[4,12,4,14],[5,12,5,14],[9,5,9,11],[10,5,10,11],[11,5,11,11],[7,0,7,4],[6,5,6,22],[7,5,7,22],[8,0,8,4],[9,0,9,4],[8,5,8,22],[9,15,9,22],[9,12,9,14],[16,0,16,4],[10,15,10,22],[11,15,11,22],[11,0,11,4],[12,0,12,4],[10,0,10,4],[12,5,12,22],[10,12,10,14],[11,12,11,14],[15,0,15,4],[15,5,15,22],[16,5,16,22]]}
["基本情報",null,null,null,null,null,null,"最終更新日：","2022-11-01"]
[]
["管理番号",null,null,null,null,null,null,null,null,null,null,null,null,null,null,null,null,null,null,null,null,null,null,"※基本情報に記述した内容が前提条件シートと新RA記録表シートおよび"]
["工事名称",null,null,null,null,null,null,null,null,null,null,null,null,null,null,null,null,null,null,null,null,null,null,"　作業時間シートに自動転記されます。"]
["工事場所",null,null,null,null,"工場名",null,null,null,null,null,null,"建屋名"]
[null,null,null,null,null,"ライン名",null,null,null,null,null,null,"柱番号"]
["工事期間"]
["元請・元方会社"]
["施工会社"]
["安全管理者",null,null,null,null,null,null,null,null,null,null,null,"電話番号"]
["工事責任者",null,null,null,null,null,null,null,null,null,null,null,"電話番号"]
["作業責任者",null,null,null,null,null,null,null,null,null,null,null,"電話番号"]
["作成日"]
[]
[]
["添付用RAシート\n保存先"]
["添付用RAシート作成"]
[null,null,null,null,null,null,"※工事届システムへのアップロード用の『添付用RAシート』と各作業日毎の『作業時間シート』を作成します。"]
[null,null,null,null,null,null,"※『作業時間シート』は添付用RAシートを保存した場所の「管理番号」のフォルダに作成されます。"]

{"sheet":"前提条件","index":1,"n_rows":33,"n_cols":57,"rows_kept":33,"cut":false,"hidden":false,"merged":[[31,13,31,42],[15,13,15,42],[9,13,9,42],[10,13,10,42],[12,13,12,42],[13,13,13,42],[14,13,14,42],[11,13,11,42],[32,13,32,42],[27,13,27,42],[16,13,16,42],[17,13,17,42],[18,13,18,42],[19,13,19,42],[20,13,20,42],[21,13,21,42],[22,13,22,42],[23,13,23,42],[24,13,24,42],[25,13,25,42],[26,13,26,42],[28,13,28,42],[29,13,29,42],[30,13,30,42],[0,0,0,67],[8,0,8,12],[8,13,8,42],[8,43,8,67],[6,25,6,33],[4,26,4,33],[2,4,2,13],[9,0,13,12],[29,0,32,12],[14,0,16,12],[17,0,19,12],[20,5,21,12],[22,5,23,12],[24,5,25,12],[20,0,25,4],[26,0,28,12]]}
["前提条件表"]
[]
["管理番号",null,null,null,null,null,null,null,null,null,null,null,null,null,null,null,null,null,null,null,null,null,"工事名称",null,null,null,null,null,null,null,null,null,null,null,null,null,null,null,null,null,null,null,null,null,null,null,null,null,null,null,null,"安全管理者",null,null,null,null," "]
[]
["工場名",null,null,null,null,null,null,null,null,null,"建屋名",null,null,null,null,null,null,null,null,null,null,null,"工事期間",null,null,null,null,null,null,null,null,null,null,null,null,"元請・元方会社",null,null,null,null,null,null,null,null,null,null,null,null,null,null,null,"工事責任者",null,null,null,null," "]
[]
["ライン名",null,null,null,null,null,null,null,null,null,"柱番号",null,null,null,null,null,null,null,null,null,null,null,"作成日",null,null,null,null,null,null,null,null,null,null,null,null,"施工会社",null,null,null,null,null,null,null,null,null,null,null,null,null,null,null,"作業責任者",null,null,null,null," "]
[]
["明確化の視点",null,null,null,null,null,null,null,null,null,null,null,null,"内　　　　　　　容",null,null,null,null,null,null,null,null,null,null,null,null,null,null,null,null,null,null,null,null,null,null,null,null,null,null,null,null,null,"記入例"]
["①作業内容\n(準備・本作業・後始末)",null,null,null,null,null,null,null,null,null,null,null,null,null,null,null,null,null,null,null,null,null,null,null,null,null,null,null,null,null,null,null,null,null,null,null,null,null,null,null,null,null,null,"作業区画　設備養生　資材搬入　高所作業車入場　高車垂幕設置　梯子設置　作業台設置"]
[null,null,null,null,null,null,null,null,null,null,null,null,null,null,null,null,null,null,null,null,null,null,null,null,null,null,null,null,null,null,null,null,null,null,null,null,null,null,null,null,null,null,null,"ロックアウト　既存バルブ開閉状況表示　アンカー打ち　架台　機械設置　"]
[null,null,null,null,null,null,null,null,null,null,null,null,null,null,null,null,null,null,null,null,null,null,null,null,null,null,null,null,null,null,null,null,null,null,null,null,null,null,null,null,null,null,null,"幹線ケーブル断線(検電)　制御盤設置　分電盤撤去　電気配線　ケーブルラック敷設　"]
[null,null,null,null,null,null,null,null,null,null,null,null,null,null,null,null,null,null,null,null,null,null,null,null,null,null,null,null,null,null,null,null,null,null,null,null,null,null,null,null,null,null,null,"ケーブル敷設　試運転調整　幹線分岐接続　高所作業車退場　作業区画撤去　設備養生撤去"]
[null,null,null,null,null,null,null,null,null,null,null,null,null,null,null,null,null,null,null,null,null,null,null,null,null,null,null,null,null,null,null,null,null,null,null,null,null,null,null,null,null,null,null,"清掃　搬入車両に道具残材積込退場　修了確認"]
["②取扱う物（材料）",null,null,null,null,null,null,null,null,null,null,null,null,null,null,null,null,null,null,null,null,null,null,null,null,null,null,null,null,null,null,null,null,null,null,null,null,null,null,null,null,null,null,"水性塗料18Ｌ　10缶　　　プライマー18Ｌ　2缶　　ＳＧＰ50Ａ　4ｍ20本　　　"]
[null,null,null,null,null,null,null,null,null,null,null,null,null,null,null,null,null,null,null,null,null,null,null,null,null,null,null,null,null,null,null,null,null,null,null,null,null,null,null,null,null,null,null,"生コンクリート20㎥　撤去後の鉄くず5ｔ　ケーブルＣＶ60Φ20ｍ"]
[null,null,null,null,null,null,null,null,null,null,null,null,null,null,null,null,null,null,null,null,null,null,null,null,null,null,null,null,null,null,null,null,null,null,null,null,null,null,null,null,null,null,null,"鋼材　Ｈ－200*200　5ｍ20本　　アンカーボルトΦ12ｍｍ　10本　　ダクト50㎡"]
["③使用する機材、器具類",null,null,null,null,null,null,null,null,null,null,null,null,null,null,null,null,null,null,null,null,null,null,null,null,null,null,null,null,null,null,null,null,null,null,null,null,null,null,null,null,null,null,"フォークリフト・高所作業車8ｍ　バックホー0.25㎥　　　親綱　安全ブロック"]
[null,null,null,null,null,null,null,null,null,null,null,null,null,null,null,null,null,null,null,null,null,null,null,null,null,null,null,null,null,null,null,null,null,null,null,null,null,null,null,null,null,null,null,"高速カッター　サンダー　丸のこ　攪拌機　アーク溶接機　酸素・アセチレンガス"]
[null,null,null,null,null,null,null,null,null,null,null,null,null,null,null,null,null,null,null,null,null,null,null,null,null,null,null,null,null,null,null,null,null,null,null,null,null,null,null,null,null,null,null,"玉掛けワイヤー　レバーブロック　電動チェーンブロック　脚立　作業台"]
["④人的条件",null,null,null,null,"a:人数･属性",null,null,null,null,null,null,null,null,null,null,null,null,null,null,null,null,null,null,null,null,null,null,null,null,null,null,null,null,null,null,null,null,null,null,null,null,null,"作業責任者1名　作業者　5名　　　移動式クレーンオペレーター1名"]
[null,null,null,null,null,null,null,null,null,null,null,null,null,null,null,null,null,null,null,null,null,null,null,null,null,null,null,null,null,null,null,null,null,null,null,null,null,null,null,null,null,null,null,"ガードマン1名"]
[null,null,null,null,null,"b:知識･技能",null,null,null,null,null,null,null,null,null,null,null,null,null,null,null,null,null,null,null,null,null,null,null,null,null,null,null,null,null,null,null,null,null,null,null,null,null,"技能講習修了者：　玉掛け・フォークリフト・ガス溶接・高所作業車・有機溶剤"]
[null,null,null,null,null,null,null,null,null,null,null,null,null,null,null,null,null,null,null,null,null,null,null,null,null,null,null,null,null,null,null,null,null,null,null,null,null,null,null,null,null,null,null,"特別教育修了者：　高所・感電・アーク溶接・振動・有機溶剤・酸欠・研削砥石"]
[null,null,null,null,null,"c:周辺作業者",null,null,null,null,null,null,null,null,null,null,null,null,null,null,null,null,null,null,null,null,null,null,null,null,null,null,null,null,null,null,null,null,null,null,null,null,null,"他社との混在作業                              付近で騒音が発生する作業有"]
[null,null,null,null,null,null,null,null,null,null,null,null,null,null,null,null,null,null,null,null,null,null,null,null,null,null,null,null,null,null,null,null,null,null,null,null,null,null,null,null,null,null,null,"付近で有機溶剤の作業有                    周辺作業を客先と調整済み"]
["⑤場所･ｽﾍﾟｰｽ的制約条件",null,null,null,null,null,null,null,null,null,null,null,null,null,null,null,null,null,null,null,null,null,null,null,null,null,null,null,null,null,null,null,null,null,null,null,null,null,null,null,null,null,null,"通路内作業（立入禁止措置）                 床から梁下までの高さは6ｍ"]
[null,null,null,null,null,null,null,null,null,null,null,null,null,null,null,null,null,null,null,null,null,null,null,null,null,null,null,null,null,null,null,null,null,null,null,null,null,null,null,null,null,null,null,"作業床の高さが6mでの作業                 屋根はスレート（直接絶対に乗らない）"]
[null,null,null,null,null,null,null,null,null,null,null,null,null,null,null,null,null,null,null,null,null,null,null,null,null,null,null,null,null,null,null,null,null,null,null,null,null,null,null,null,null,null,null,"作業エリアに深さ3mのピット有り            ロックアウトをする設備内作業"]
["⑥発注者から提示された危険・\n有害情報　（必ず記入）",null,null,null,null,null,null,null,null,null,null,null,null,null,null,null,null,null,null,null,null,null,null,null,null,null,null,null,null,null,null,null,null,null,null,null,null,null,null,null,null,null,null,"天井クレーン走行範囲内作業（ロックアウットが出来ないので見張人配置）"]
[null,null,null,null,null,null,null,null,null,null,null,null,null,null,null,null,null,null,null,null,null,null,null,null,null,null,null,null,null,null,null,null,null,null,null,null,null,null,null,null,null,null,null,"作業は工場休日限定                          溶湯炉にはアルミが保温状態"]
[null,null,null,null,null,null,null,null,null,null,null,null,null,null,null,null,null,null,null,null,null,null,null,null,null,null,null,null,null,null,null,null,null,null,null,null,null,null,null,null,null,null,null,"Ａ遮断機は活線状態"]
[null,null,null,null,null,null,null,null,null,null,null,null,null,null,null,null,null,null,null,null,null,null,null,null,null,null,null,null,null,null,null,null,null,null,null,null,null,null,null,null,null,null,null,"他のライン稼働中　　　油漏れ対策"]

{"sheet":"新RA記録表","index":2,"n_rows":64,"n_cols":24,"rows_kept":64,"cut":false,"hidden":false,"merged":[[2,16,5,16],[2,14,5,14],[2,13,5,13],[44,4,44,5],[44,10,44,11],[44,13,44,15],[45,4,45,5],[45,10,45,11],[45,13,45,15],[42,4,42,5],[42,10,42,11],[42,13,42,15],[43,4,43,5],[43,10,43,11],[43,13,43,15],[40,4,40,5],[40,10,40,11],[40,13,40,15],[41,4,41,5],[41,10,41,11],[41,13,41,15],[38,4,38,5],[38,10,38,11],[38,13,38,15],[39,4,39,5],[39,10,39,11],[39,13,39,15],[36,4,36,5],[36,10,36,11],[36,13,36,15],[37,4,37,5],[37,10,37,11],[37,13,37,15],[34,4,34,5],[34,10,34,11],[34,13,34,15],[35,4,35,5],[35,10,35,11],[35,13,35,15],[32,4,32,5],[32,10,32,11],[32,13,32,15],[33,4,33,5],[33,10,33,11],[33,13,33,15],[30,4,30,5],[30,10,30,11],[30,13,30,15],[31,4,31,5],[31,10,31,11],[31,13,31,15],[28,4,28,5],[28,10,28,11],[28,13,28,15],[29,4,29,5],[29,10,29,11],[29,13,29,15],[26,4,26,5],[27,4,27,5],[24,4,24,5],[25,4,25,5],[24,10,24,11],[24,13,24,15],[25,10,25,11],[25,13,25,15],[22,4,22,5],[22,10,22,11],[22,13,22,15],[23,4,23,5],[23,10,23,11],[23,13,23,15],[20,4,20,5],[20,10,20,11],[20,13,20,15],[21,4,21,5],[21,10,21,11],[21,13,21,15],[18,4,18,5],[18,10,18,11],[18,13,18,15],[19,4,19,5],[19,10,19,11],[19,13,19,15],[16,4,16,5],[16,10,16,11],[16,13,16,15],[17,4,17,5],[17,10,17,11],[17,13,17,15],[14,4,14,5],[14,10,14,11],[14,13,14,15],[15,4,15,5],[15,10,15,11],[15,13,15,15],[12,4,12,5],[12,10,12,11],[12,13,12,15],[13,4,13,5],[13,10,13,11],[13,13,13,15],[10,4,10,5],[10,10,10,11],[10,13,10,15],[11,4,11,5],[11,10,11,11],[11,13,11,15],[8,10,9,11],[8,13,9,15],[0,1,1,3],[0,14,0,15],[5,5,5,8],[8,1,9,1],[8,2,9,2],[8,3,9,3],[8,4,9,5],[8,6,8,9],[4,2,4,3],[2,15,5,15],[8,16,9,18],[10,16,10,18],[11,16,11,18],[12,16,12,18],[13,16,13,18],[14,16,14,18],[15,16,15,18],[16,16,16,18],[17,16,17,18],[18,16,18,18],[19,16,19,18],[20,16,20,18],[21,16,21,18],[22,16,22,18],[23,16,23,18],[28,16,28,18],[29,16,29,18],[30,16,30,18],[24,16,24,18],[25,16,25,18],[40,16,40,18],[41,16,41,18],[42,16,42,18],[43,16,43,18],[44,16,44,18],[45,16,45,18],[31,16,31,18],[32,16,32,18],[33,16,33,18],[34,16,34,18],[35,16,35,18],[36,16,36,18],[37,16,37,18],[38,16,38,18],[39,16,39,18]]}
[null,"リスクアセスメント記録表",null,null,null,null,null,null,null,null,null,null,null,"作成日："]
[null,null,null,null,"管理番号",null,null,null,null,null,null,null,null,null,null,"作成者","ﾄﾖﾀ計画部署"]
[null,"元請・元方会社",null,null,"工事名称"]
[null,"施工会社",null,null,"作業内容"]
[null,"工事場所","   ",null,"工事期間"]
[null,"危険源の特定（想定できる危険源をすべて挙げる）"]
[]
[]
[null,"作業工程\n・手順","危険源と\n具体的箇所","想定される\n事象（災害）","実施するリスク低減対策",null,"リスクの評価 \n（簡易法）",null,null,null,"特に注意すべき残留リスク\n／事象",null,null,"徹 底 事 項",null,null,"計画者\nコメント欄"]
[null,null,null,null,null,null,"危険源","対策レベル","評価点","ランク",null,null,"重要\n(〇印)"]
[null,null,null,null,null,null,null,null,{"$f":"IF(G11=\"-\",\"-\",IF(G11*H11=0,\"\",G11*H11))","v":""},{"$f":"IF(G11=\"-\",\"-\",IF(I11=\"\",\"\",IF(I11>=10,\"A\",IF(I11>=5,\"B\",IF(I11>=3,\"C\",\"D\")))))","v":""}]
[null,null,null,null,null,null,null,null,{"$f":"IF(G12=\"-\",\"-\",IF(G12*H12=0,\"\",G12*H12))","v":""},{"$f":"IF(G12=\"-\",\"-\",IF(I12=\"\",\"\",IF(I12>=10,\"A\",IF(I12>=5,\"B\",IF(I12>=3,\"C\",\"D\")))))","v":""}]
[null,null,null,null,null,null,null,null,"",""]
[null,null,null,null,null,null,null,null,"",""]
[null,null,null,null,null,null,null,null,"",""]
[null,null,null,null,null,null,null,null,"",""]
[null,null,null,null,null,null,null,null,"",""]
[null,null,null,null,null,null,null,null,{"$f":"IF(G18=\"-\",\"-\",IF(G18*H18=0,\"\",G18*H18))","v":""},{"$f":"IF(G18=\"-\",\"-\",IF(I18=\"\",\"\",IF(I18>=10,\"A\",IF(I18>=5,\"B\",IF(I18>=3,\"C\",\"D\")))))","v":""}]
[null,null,null,null,null,null,null,null,{"$f":"IF(G19=\"-\",\"-\",IF(G19*H19=0,\"\",G19*H19))","v":""},{"$f":"IF(G19=\"-\",\"-\",IF(I19=\"\",\"\",IF(I19>=10,\"A\",IF(I19>=5,\"B\",IF(I19>=3,\"C\",\"D\")))))","v":""}]
[null,null,null,null,null,null,null,null,"",""]
[null,null,null,null,null,null,null,null,"",""]
[null,null,null,null,null,null,null,null,"",""]
[null,null,null,null,null,null,null,null,"",""]
[null,null,null,null,null,null,null,null,"",""]
[null,null,null,null,null,null,null,null,"",""]
[null,null,null,null,null,null,null,null,"",""]
[null,null,null,null,null,null,null,null,"",""]
[null,null,null,null,null,null,null,null,"",""]
[null,null,null,null,null,null,null,null,"",""]
[null,null,null,null,null,null,null,null,"",""]
[null,null,null,null,null,null,null,null,"",""]
[null,null,null,null,null,null,null,null,"",""]
[null,null,null,null,null,null,null,null,"",""]
[null,null,null,null,null,null,null,null,"",""]
[null,null,null,null,null,null,null,null,"",""]
[null,null,null,null,null,null,null,null,"",""]
[null,null,null,null,null,null,null,null,"",""]
[null,null,null,null,null,null,null,null,"",""]
[null,null,null,null,null,null,null,null,"",""]
[null,null,null,null,null,null,null,null,"",""]
[null,null,null,null,null,null,null,null,"",""]
[null,null,null,null,null,null,null,null,"",""]
[null,null,null,null,null,null,null,null,"",""]
[null,null,null,null,null,null,null,null,"",""]
[null,null,null,null,null,null,null,null,"",""]
[null,null,null,null,null,null,null,null,"",""]
[null,null,null,null,null,null,null,null,null,null,null,null,null,null,null,null,null,null,null,null,null,null,null,"危険事象の例　表2-3"]
[null,null,null,null,null,null,null,null,null,null,null,null,null,null,null,null,null,null,null,null,"危険源","対策ﾚﾍﾞﾙ",null,"墜落・転落"]
[null,null,null,null,null,null,null,null,null,null,null,null,null,null,null,null,null,null,null,null,50,1,null,"転倒・つまづき・滑り"]
[null,null,null,null,null,null,null,null,null,null,null,null,null,null,null,null,null,null,null,null,10,0.6,null,"激突"]
[null,null,null,null,null,null,null,null,null,null,null,null,null,null,null,null,null,null,null,null,8,0.3,null,"飛来・落下"]
[null,null,null,null,null,null,null,null,null,null,null,null,null,null,null,null,null,null,null,null,6,0.1,null,"崩壊・倒壊"]
[null,null,null,null,null,null,null,null,null,null,null,null,null,null,null,null,null,null,null,null,"-","-",null,"激突され"]
[null,null,null,null,null,null,null,null,null,null,null,null,null,null,null,null,null,null,null,null,null,null,null,"はさまれ・巻込まれ"]
[null,null,null,null,null,null,null,null,null,null,null,null,null,null,null,null,null,null,null,null,null,null,null,"切れ・こすれ"]
[null,null,null,null,null,null,null,null,null,null,null,null,null,null,null,null,null,null,null,null,null,null,null,"踏み抜き"]
[null,null,null,null,null,null,null,null,null,null,null,null,null,null,null,null,null,null,null,null,null,null,null,"高温・低温物との接触"]
[null,null,null,null,null,null,null,null,null,null,null,null,null,null,null,null,null,null,null,null,null,null,null,"有害物等との接触"]
[null,null,null,null,null,null,null,null,null,null,null,null,null,null,null,null,null,null,null,null,null,null,null,"感電"]
[null,null,null,null,null,null,null,null,null,null,null,null,null,null,null,null,null,null,null,null,null,null,null,"爆発・破裂"]
[null,null,null,null,null,null,null,null,null,null,null,null,null,null,null,null,null,null,null,null,null,null,null,"火災"]
[null,null,null,null,null,null,null,null,null,null,null,null,null,null,null,null,null,null,null,null,null,null,null,"交通事故"]
[null,null,null,null,null,null,null,null,null,null,null,null,null,null,null,null,null,null,null,null,null,null,null,"動作の反動・無理な動作"]
[null,null,null,null,null,null,null,null,null,null,null,null,null,null,null,null,null,null,null,null,null,null,null,"熱中症"]

{"sheet":"作業時間シート(元)","index":3,"n_rows":30,"n_cols":94,"rows_kept":30,"cut":false,"hidden":true,"merged":[[2,4,2,13],[8,0,9,0],[8,1,9,13],[8,14,8,15],[8,16,9,19],[8,20,9,22],[8,23,9,23],[8,24,9,25],[8,26,9,27],[6,26,6,52],[9,44,9,45],[8,28,8,75],[9,46,9,47],[9,48,9,49],[9,50,9,51],[9,28,9,29],[9,30,9,31],[9,32,9,33],[9,34,9,35],[9,36,9,37],[9,38,9,39],[4,26,4,52],[8,76,8,83],[9,76,9,81],[8,84,8,93],[9,84,9,93],[10,1,10,13],[10,16,10,19],[10,20,10,21],[10,24,10,25],[10,26,10,27],[9,64,9,65],[9,66,9,67],[9,68,9,69],[9,70,9,71],[9,72,9,73],[9,74,9,75],[9,52,9,53],[9,54,9,55],[9,56,9,57],[9,58,9,59],[9,60,9,61],[9,62,9,63],[9,40,9,41],[9,42,9,43],[10,76,10,81],[10,84,10,93],[11,1,11,13],[11,16,11,19],[11,20,11,21],[11,24,11,25],[11,26,11,27],[11,76,11,81],[11,84,11,93],[12,84,12,93],[13,1,13,13],[13,16,13,19],[13,20,13,21],[13,24,13,25],[13,26,13,27],[13,76,13,81],[13,84,13,93],[12,1,12,13],[12,16,12,19],[12,20,12,21],[12,24,12,25],[12,26,12,27],[12,76,12,81],[14,84,14,93],[15,1,15,13],[15,16,15,19],[15,20,15,21],[15,24,15,25],[15,26,15,27],[15,76,15,81],[15,84,15,93],[14,1,14,13],[14,16,14,19],[14,20,14,21],[14,24,14,25],[14,26,14,27],[14,76,14,81],[16,84,16,93],[17,1,17,13],[17,16,17,19],[17,20,17,21],[17,24,17,25],[17,26,17,27],[17,76,17,81],[17,84,17,93],[16,1,16,13],[16,16,16,19],[16,20,16,21],[16,24,16,25],[16,26,16,27],[16,76,16,81],[18,84,18,93],[19,1,19,13],[19,16,19,19],[19,20,19,21],[19,24,19,25],[19,26,19,27],[19,76,19,81],[19,84,19,93],[18,1,18,13],[18,16,18,19],[18,20,18,21],[18,24,18,25],[18,26,18,27],[18,76,18,81],[20,84,20,93],[21,1,21,13],[21,16,21,19],[21,20,21,21],[21,24,21,25],[21,26,21,27],[21,76,21,81],[21,84,21,93],[20,1,20,13],[20,16,20,19],[20,20,20,21],[20,24,20,25],[20,26,20,27],[20,76,20,81],[22,84,22,93],[23,1,23,13],[23,16,23,19],[23,20,23,21],[23,24,23,25],[23,26,23,27],[23,76,23,81],[23,84,23,93],[22,1,22,13],[22,16,22,19],[22,20,22,21],[22,24,22,25],[22,26,22,27],[22,76,22,81],[24,84,24,93],[25,1,25,13],[25,16,25,19],[25,20,25,21],[25,24,25,25],[25,26,25,27],[25,76,25,81],[25,84,25,93],[24,1,24,13],[24,16,24,19],[24,20,24,21],[24,24,24,25],[24,26,24,27],[24,76,24,81],[29,1,29,13],[29,16,29,19],[29,20,29,21],[29,24,29,25],[29,26,29,27],[29,76,29,81],[29,84,29,93],[28,1,28,13],[28,16,28,19],[28,20,28,21],[28,24,28,25],[28,26,28,27],[28,76,28,81],[27,1,27,13],[27,16,27,19],[27,20,27,21],[27,24,27,25],[27,26,27,27],[27,76,27,81],[27,84,27,93],[26,1,26,13],[28,84,28,93],[26,16,26,19],[26,20,26,21],[26,24,26,25],[26,26,26,27],[26,76,26,81],[26,84,26,93]]}
["作業時間シート（電話帳）",null,null,null,null,null,null,null,null,null,null,null,"*月*日(*)",null,null,null,null,null,null,null,null,null,null,null,null,null,null,null,null,null,null,null,null,null,null,null,null,null,null,null,null,null,null,null,null,null,null,null,null,null,null,null,null,null,null,null,null,"本日の行動目標",null,null,null,null,null,null,null,null,null,null,null,null,null,null,null,null,null,null,null,null,null,null,null,null,null,null,null,null,null,null,null,null,null,null,null,"ヨシ!"]
[]
["管理番号",null,null,null,null,null,null,null,null,null,null,null,null,null,null,null,null,null,null,null,null,null,null,"工事名称",null,null,null,null,null,null,null,null,null,null,null,null,null,null,null,null,null,null,null,null,null,null,null,null,null,null,null,null,null,null,null,null,null,null,null,null,null,null,null,null,null,null,null,null,null,null,null,null,null,null,null,null,null,"安全管理者",null,null,null,null," "]
[]
["工場名",null,null,null,null,null,null,null,null,null,"建屋名",null,null,null,null,null,null,null,null,null,null,null,null,"工期",null,null,null,null,null,null,null,null,null,null,null,null,null,null,null,null,null,null,null,null,null,null,null,null,null,null,null,null,null,null,null,"元請・元方会社",null,null,null,null,null,null,null,null,null,null,null,null,null,null,null,null,null,null,null,null,null,"工事責任者",null,null,null,null," "]
[]
["ライン名",null,null,null,null,null,null,null,null,null,"柱番号",null,null,null,null,null,null,null,null,null,null,null,null,"作成日",null,null,null,null,null,null,null,null,null,null,null,null,null,null,null,null,null,null,null,null,null,null,null,null,null,null,null,null,null,null,null,"施工会社",null,null,null,null,null,null,null,null,null,null,null,null,null,null,null,null,null,null,null,null,null,"作業責任者",null,null,null,null," "]
[]
["No","作業工程",null,null,null,null,null,null,null,null,null,null,null,null,"有：●",null,"作業責任者\n(工程毎に\n違う場合)",null,null,null,"人数",null,null,"台数","原単位",null,"作手\nNo.",null,"作業時間　※作業時間は「1」、休憩時間は「9」を入力",null,null,null,null,null,null,null,null,null,null,null,null,null,null,null,null,null,null,null,null,null,null,null,null,null,null,null,null,null,null,null,null,null,null,null,null,null,null,null,null,null,null,null,null,null,null,null,"再評価後最大のリスク",null,null,null,null,null,null,null,"備考(下記必須)"]
[null,null,null,null,null,null,null,null,null,null,null,null,null,null,"火気","高所",null,null,null,null,null,null,null,null,null,null,null,null,0,null,1,null,2,null,3,null,4,null,5,null,6,null,7,null,8,null,9,null,10,null,11,null,12,null,13,null,14,null,15,null,16,null,17,null,18,null,19,null,20,null,21,null,22,null,23,null,"要因",null,null,null,null,null,"評価点","ランク","火気●：終了時刻と監視時間\n　　　　火気責任者"]
[1,null,null,null,null,null,null,null,null,null,null,null,null,null,null,null,null,null,null,null,null,null,"名"]
[2,null,null,null,null,null,null,null,null,null,null,null,null,null,null,null,null,null,null,null,null,null,"名"]
[3,null,null,null,null,null,null,null,null,null,null,null,null,null,null,null,null,null,null,null,null,null,"名"]
[4,null,null,null,null,null,null,null,null,null,null,null,null,null,null,null,null,null,null,null,null,null,"名"]
[5,null,null,null,null,null,null,null,null,null,null,null,null,null,null,null,null,null,null,null,null,null,"名"]
[6,null,null,null,null,null,null,null,null,null,null,null,null,null,null,null,null,null,null,null,null,null,"名"]
[7,null,null,null,null,null,null,null,null,null,null,null,null,null,null,null,null,null,null,null,null,null,"名"]
[8,null,null,null,null,null,null,null,null,null,null,null,null,null,null,null,null,null,null,null,null,null,"名"]
[9,null,null,null,null,null,null,null,null,null,null,null,null,null,null,null,null,null,null,null,null,null,"名"]
[10,null,null,null,null,null,null,null,null,null,null,null,null,null,null,null,null,null,null,null,null,null,"名"]
[11,null,null,null,null,null,null,null,null,null,null,null,null,null,null,null,null,null,null,null,null,null,"名"]
[12,null,null,null,null,null,null,null,null,null,null,null,null,null,null,null,null,null,null,null,null,null,"名"]
[13,null,null,null,null,null,null,null,null,null,null,null,null,null,null,null,null,null,null,null,null,null,"名"]
[14,null,null,null,null,null,null,null,null,null,null,null,null,null,null,null,null,null,null,null,null,null,"名"]
[15,null,null,null,null,null,null,null,null,null,null,null,null,null,null,null,null,null,null,null,null,null,"名"]
[16,null,null,null,null,null,null,null,null,null,null,null,null,null,null,null,null,null,null,null,null,null,"名"]
[17,null,null,null,null,null,null,null,null,null,null,null,null,null,null,null,null,null,null,null,null,null,"名"]
[18,null,null,null,null,null,null,null,null,null,null,null,null,null,null,null,null,null,null,null,null,null,"名"]
[19,null,null,null,null,null,null,null,null,null,null,null,null,null,null,null,null,null,null,null,null,null,"名"]
[20,null,null,null,null,null,null,null,null,null,null,null,null,null,null,null,null,null,null,null,null,null,"名"]

{"sheet":"元データ","index":4,"n_rows":18,"n_cols":27,"rows_kept":18,"cut":false,"hidden":true,"merged":[[0,19,0,20],[0,9,1,10],[0,0,1,0],[0,1,1,1],[0,2,1,2],[0,3,1,4],[0,5,0,8]]}
["作業工程\n・手順","危険源と\n具体的箇所","想定される\n事象（災害）","実施するリスク低減対策",null,"リスクの評価 \n（簡易法）",null,null,null,"特に注意すべき残留リスク\n／事象",null,null,null,null,null,null,null,"項目数\n（入力項目数）",null,"変更値",null,"前提条件","新RA記録表","作業時間シート(元)","備考","転記内容","転記対象"]
[null,null,null,null,null,"危険源","対策レベル","評価点","ランク",null,null,"重要\n(〇印)",null,null,null,null,null,{"$f":"COUNTA(F:F)-2","v":0},null,{"$f":"INDEX(T3:U18,MATCH(U2,U3:U18,0),1)","v":{"$error":"#N/A"}},"I1",{"$f":"VLOOKUP(U2,U3:Z18,2,FALSE)","v":{"$error":"#N/A"}},{"$f":"VLOOKUP(U2,U3:Z18,3,FALSE)","v":{"$error":"#N/A"}},{"$f":"VLOOKUP(U2,U3:Z18,4,FALSE)","v":{"$error":"#N/A"}},{"$f":"VLOOKUP(U2,U3:Z18,5,FALSE)","v":{"$error":"#N/A"}},{"$f":"VLOOKUP(U2,U3:Z18,6,FALSE)","v":{"$error":"#N/A"}},{"$f":"IF(COUNTIF(U3:U18,U2)=0,\"対象外\",\"対象\")","v":"対象外"}]
[null,null,null,null,null,null,null,null,null,null,null,null,null,null,null,null,null,null,null,"管理番号","F3","E3","F2","E3","その他",null,"対象"]
[null,null,null,null,null,null,null,null,null,null,null,null,null,null,null,null,null,null,null,"工事名称","F4","AA3","F3","AB3","その他",null,"対象"]
[null,null,null,null,null,null,null,null,null,null,null,null,null,null,null,null,null,null,null,"工場名","I5","D5","C5","D5","その他",null,"対象"]
[null,null,null,null,null,null,null,null,null,null,null,null,null,null,null,null,null,null,null,"建屋名","P5","N5","C5","N5","その他",null,"対象"]
[null,null,null,null,null,null,null,null,null,null,null,null,null,null,null,null,null,null,null,"ライン名","I6","E7","C5","E7","その他",null,"対象"]
[null,null,null,null,null,null,null,null,null,null,null,null,null,null,null,null,null,null,null,"柱番号","P6","N7","C5","N7","その他",null,"対象"]
[null,null,null,null,null,null,null,null,null,null,null,null,null,null,null,null,null,null,null,"工事期間","F7","AA5","F5","AA5","その他",null,"対象"]
[null,null,null,null,null,null,null,null,null,null,null,null,null,null,null,null,null,null,null,"元請・元方会社","F8","AP5","C3","BJ5","その他",null,"対象"]
[null,null,null,null,null,null,null,null,null,null,null,null,null,null,null,null,null,null,null,"施工会社","F9","AN7","C4","BH7","その他",null,"対象"]
[null,null,null,null,null,null,null,null,null,null,null,null,null,null,null,null,null,null,null,"安全管理者","F10","BE3","-","CE3","安全管理者",{"$f":"基本情報!$F$10& \" \" &基本情報!$P$10","v":" "},"対象"]
[null,null,null,null,null,null,null,null,null,null,null,null,null,null,null,null,null,null,null,"安全管理者電話番号","P10","BE3","-","CE3","安全管理者",{"$f":"基本情報!$F$10& \" \" &基本情報!$P$10","v":" "},"対象"]
[null,null,null,null,null,null,null,null,null,null,null,null,null,null,null,null,null,null,null,"工事責任者","F11","BE5","-","CE5","工事責任者",{"$f":"基本情報!$F$11& \" \" &基本情報!$P$11","v":" "},"対象"]
[null,null,null,null,null,null,null,null,null,null,null,null,null,null,null,null,null,null,null,"工事責任者電話番号","P11","BE5","-","CE5","工事責任者",{"$f":"基本情報!$F$11& \" \" &基本情報!$P$11","v":" "},"対象"]
[null,null,null,null,null,null,null,null,null,null,null,null,null,null,null,null,null,null,null,"作業責任者","F12","BE7","-","CE7","作業責任者",{"$f":"基本情報!$F$12& \" \" &基本情報!$P$12","v":" "},"対象"]
[null,null,null,null,null,null,null,null,null,null,null,null,null,null,null,null,null,null,null,"作業責任者電話番号","P12","BE7","-","CE7","作業責任者",{"$f":"基本情報!$F$12& \" \" &基本情報!$P$12","v":" "},"対象"]
[null,null,null,null,null,null,null,null,null,null,null,null,null,null,null,null,null,null,null,"作成日","F13","Z7","O1","AA7","その他",null,"対象"]

{"sheet":"立会いチェック版","index":5,"n_rows":8,"n_cols":27,"rows_kept":8,"cut":false,"hidden":false,"merged":[]}
[null,null,null,null,null,null,null,null,null,"(工事管理部署から指示がある場合に使用して下さい)",null,null,null,null,null,null,null,null,null,null,null,null,null,null,null,null,"補足"]
["立会いチェック版",null,null,null,null,null,null,null,null,null,null,null,null,null,null,null,null,null,null,null,null,null,null,null,null,"作業時間シートに　立会いチェック欄を追加します"]
["作業時間シート（電話帳）の作り方",null,null,null,null,null,null,null,null,null,null,null,null,null,null,null,null,null,null,null,null,null,null,null,null,null,"☆作業時間シートは12行以下で作成して下さい　（2枚以上になる場合は　一枚目にこのデータを貼り付けて下さい）"]
[null,"（通常の作業時間シート（電話帳）を作成した後に追加します）"]
[null,"１．このデータ（画像）を選んでコピーします。",null,null,null,null,null,null,null,null,null,null,null,null,null,null,null,null,null,null,null,null,null,null,null,"「トヨタへの要望事項・・・」（F11カラム）辺りをクリックし　(画像が選択さる)　ctrl+C　または　「編集」「コピー」を選択"]
[null,"２．作業時間シートの作業工程13行目の位置に貼り付けます。",null,null,null,null,null,null,null,null,null,null,null,null,null,null,null,null,null,null,null,null,null,null,null,"作業時間シート（日付のシート）選択　A23カラムを選択　　ctrl+V　または　「編集」「貼り付け」を選択"]
[null,"３．印刷時に画像が分断されないよう、位置を調整ください。",null,null,null,null,null,null,null,null,null,null,null,null,null,null,null,null,null,null,null,null,null,null,null,"１２行目の下の線が隠れない位置に移動　{矢印キーで動きます}　印刷プレビューで確認"]
[null,null,null,null,null,null,null,null,null,null,null,null,null,null,null,null,null,null,null,null,null,null,null,null,null,"　　　　（プリンター種類により　1枚に入りきらない場合が有ります　⇒　11行にする等調整して下さい）"]